Workbook

Sheet Kalvebod Fælled
A1: Vandområde | C1: Kalvebod Fælled | BE1: Vandområde | BG1: Damhusåen
A3: Udlednings nr. | C3: UN13 | D3: VA-U05 | E3: VA-U19 | F3: VA-U20 | G3: VA-U21 | H3: VA-U22 | I3: ØC-U05 | J3: ØC-U11 | K3: ØC-U11.1 | L3: ØC-U31 | M3: ØS-U01 | N3: ØS-U11 | BE3: Udlednings nr. | BG3: UD10b | BH3: UD10d | BI3: UD11b | BJ3: UD12 | BK3: UD13 | BL3: UD14 | BM3: UD15 | BN3: UD16 | BO3: UD17 | BP3: UD18 | BQ3: UD19b | BR3: UD20b | BS3: UD21 | BT3: UD21b | BU3: UD24 | BV3: Sum
A4: Adresse | C4: - | D4: Ørestads Boulevard | E4: Ejler Billes Allé | F4: Asger Jorns Allé | G4: Else Alfelts Vej | H4: Else Alfelts Vej2 | I4: Center Boulevard | J4: Center Boulevard3 | K4: Center Boulevard4 | L4: Center Boulevard5 | M4: CMC-vej/ Metrovej | N4: Hannemanns Allé | O4: SUM | BE4: Adresse | BG4: Nødoverløb Damhusåens renseanlæg | BH4: Hovedoverløb Damhus-ledning | BI4: Åhaven | BJ4: Sønderkær | BK4: Vigerslev Allé | BL4: Gårdstedet | BM4: Heldbovej | BN4: Lykkebovej | BO4: Landlystvej | BP4: Skyttegårdsvej | BQ4: Sandhusvej | BR4: Hvidovre station | BS4: Vigerslev-parken N for Dæmningen | BT4: Nødoverløb ved Torpedo-bygværket | BU4: Roskildevej | BV4: -
A5: Kloakeringstype | B5: Status | C5: Separat | D5: Separat | E5: Separat | F5: Separat | G5: Separat | H5: Separat | I5: Separat | J5: Separat | K5: Separat | L5: Separat | M5: Separat | N5: Separat | O5: - | BE5: Kloakeringstype | BF5: Status | BG5: Fælles | BH5: Fælles | BI5: Fælles | BJ5: Fælles | BK5: Fælles | BL5: Fælles | BM5: Fælles | BN5: Fælles | BO5: Fælles | BP5: Fælles | BQ5: Fælles | BR5: Fælles | BS5: Fælles | BT5: Fælles | BU5: Fælles | BV5: -
B6: Plan | C6: Separat | D6: Separat | E6: Separat | F6: Separat | G6: Separat | H6: Separat | I6: Separat | J6: Separat | K6: Separat | L6: Separat | M6: Separat | N6: Separat | O6: - | BF6: Plan | BG6: Fælles | BH6: Fælles | BI6: Fælles | BJ6: Fælles | BK6: Fælles | BL6: Fælles | BM6: Fælles | BN6: Fælles | BO6: Fælles | BP6: Fælles | BQ6: Fælles | BR6: Fælles | BS6: Fælles | BT6: Fælles | BU6: Fælles | BV6: -
B7: Strategi | C7: Separat | D7: Separat | E7: Separat | F7: Separat | G7: Separat | H7: Separat | I7: Separat | J7: Separat | K7: Separat | L7: Separat | M7: Separat | N7: Separat | O7: - | BF7: Strategi | BG7: Fælles | BH7: Fælles | BI7: Fælles | BJ7: Fælles | BK7: Fælles | BL7: Fælles | BM7: Fælles | BN7: Fælles | BO7: Fælles | BP7: Fælles | BQ7: Fælles | BR7: Fælles | BS7: Fælles | BT7: Fælles | BU7: Fælles | BV7: -
A8: Reduceret areal ha | B8: Status | C8: 9.8 | D8: 14 | E8: 0.91 | F8: 0.91 | G8: 0.91 | H8: 0.91 | I8: 4.6 | J8: 3.1 | K8: 7.6 | L8: 0.93 | M8: 1 | N8: 4.4 | O8: =SUM(Tabel16[[#This Row],[-]:[Hannemanns Allé]]) -> 49.07 | BE8: Reduceret areal ha | BF8: Status | BG8: 62.09627 | BH8: 0 | BI8: 4.926299 | BJ8: 13.292068 | BK8: 9.063189 | BL8: 1.454076 | BM8: 1.523395 | BN8: 3.503314 | BO8: 1.93898 | BP8: 4.850912 | BQ8: 2.3 | BR8: 1.07056 | BS8: 284.5 | BT8: 0 | BU8: 0 | BV8: =SUM(BG8:BU8) -> 390.519063
B9: Plan | C9: 9.8 | D9: 14 | E9: 0.91 | F9: 0.91 | G9: 0.91 | H9: 0.91 | I9: 4.6 | J9: 3.1 | K9: 7.6 | L9: 0.93 | M9: 1 | N9: 4.4 | O9: =SUM(Tabel16[[#This Row],[-]:[Hannemanns Allé]]) -> 49.07 | BF9: Plan | BG9: 62.09627 | BH9: 0 | BI9: 4.926299 | BJ9: 13.292068 | BK9: 9.063189 | BL9: 1.454076 | BM9: 1.523395 | BN9: 3.503314 | BO9: 1.93898 | BP9: 4.850912 | BQ9: 2.3 | BR9: 1.07056 | BS9: 284.5 | BT9: 0 | BU9: 0 | BV9: 390.519063
B10: Strategi | C10: 9.8 | D10: 14 | E10: 0.91 | F10: 0.91 | G10: 0.91 | H10: 0.91 | I10: 4.6 | J10: 3.1 | K10: 7.6 | L10: 0.93 | M10: 1 | N10: 4.4 | O10: =SUM(Tabel16[[#This Row],[-]:[Hannemanns Allé]]) -> 49.07 | BF10: Strategi | BG10: 62.09627 | BH10: 0 | BI10: 4.926299 | BJ10: 13.292068 | BK10: 9.063189 | BL10: 1.454076 | BM10: 1.523395 | BN10: 3.503314 | BO10: 1.93898 | BP10: 4.850912 | BQ10: 2.3 | BR10: 1.07056 | BS10: 284.5 | BT10: 0 | BU10: 0 | BV10: 390.519063
A11: Maks udledning l/s | B11: Status | C11: 490 | D11: 60 | E11: 240 | F11: 430 | G11: 200 | H11: 130 | I11: 650 | J11: 950 | K11: 2100 | L11: 175 | M11: 60 | N11: 240 | O11: =SUM(Tabel16[[#This Row],[-]:[Hannemanns Allé]]) -> 5725 | BE11: Maks udledning l/s | BF11: Status | BG11: 5000 | BH11: 5000 | BI11: 700 | BJ11: 3000 | BK11: 1200 | BL11: 500 | BM11: 100 | BN11: 300 | BO11: 300 | BP11: 500 | BQ11: 500 | BR11: 200 | BS11: 1500 | BT11: 0 | BU11: 1000 | BV11: 19800
B12: Plan | C12: 490 | D12: 60 | E12: 150 | F12: 430 | G12: 200 | H12: 250 | I12: 650 | J12: 950 | K12: 2100 | L12: 175 | M12: 60 | N12: 240 | O12: =SUM(Tabel16[[#This Row],[-]:[Hannemanns Allé]]) -> 5755 | BF12: Plan | BG12: 5000 | BH12: 5000 | BI12: 700 | BJ12: 3000 | BK12: 1200 | BL12: 500 | BM12: 100 | BN12: 300 | BO12: 300 | BP12: 500 | BQ12: 500 | BR12: 200 | BS12: 1500 | BT12: 0 | BU12: 1000 | BV12: 19800
B13: Strategi | C13: 490 | D13: 60 | E13: 150 | F13: 430 | G13: 200 | H13: 250 | I13: 650 | J13: 950 | K13: 2100 | L13: 175 | M13: 60 | N13: 240 | O13: =SUM(Tabel16[[#This Row],[-]:[Hannemanns Allé]]) -> 5755 | BF13: Strategi | BG13: 5000 | BH13: 5000 | BI13: 700 | BJ13: 3000 | BK13: 1200 | BL13: 500 | BM13: 100 | BN13: 300 | BO13: 300 | BP13: 500 | BQ13: 500 | BR13: 200 | BS13: 1500 | BT13: 0 | BU13: 1000 | BV13: 19800
A14: Overløbshyppighed antal/år | B14: Status | C14: 0 | E14: 4 | F14: 4 | G14: 4 | H14: 4 | I14: 3 | K14: 2-9 | M14: 0 | N14: 0 | O14: =SUM(Tabel16[[#This Row],[-]:[Hannemanns Allé]]) -> 19 | BE14: Overløbshyppighed antal/år | BF14: Status | BG14: 2 | BH14: 1 | BI14: 0.5 | BJ14: 0.1 | BK14: 0.1 | BL14: 0.1 | BM14: 0.1 | BN14: 0.1 | BO14: 0.25 | BP14: 0.3 | BQ14: 0.1 | BR14: 0.1 | BS14: 0.2 | BT14: 0 | BU14: 13 | BV14: -
B15: Plan | C15: 0 | D15: 0 | E15: 4 | F15: 4 | G15: 4 | H15: 4 | I15: 0 | J15: 0 | K15: 0 | L15: 0 | M15: 0 | N15: 0 | O15: =SUM(Tabel16[[#This Row],[-]:[Hannemanns Allé]]) -> 16 | BF15: Plan | BG15: 2 | BH15: 1 | BI15: 0.5 | BJ15: 0.1 | BK15: 0.1 | BL15: 0.1 | BM15: 0.1 | BN15: 0.1 | BO15: 0.25 | BP15: 0.3 | BQ15: 0.1 | BR15: 0.1 | BS15: 0.2 | BT15: 0 | BU15: 13 | BV15: -
B16: Strategi | E16: 4 | F16: 4 | G16: 4 | H16: 4 | O16: =SUM(Tabel16[[#This Row],[-]:[Hannemanns Allé]]) -> 16 | BF16: Strategi | BG16: 1 | BH16: 0.1 | BI16: 0.05 | BJ16: 0.01 | BK16: 0.01 | BL16: 0.01 | BM16: 0.01 | BN16: 0.01 | BO16: 0.025 | BP16: 0.03 | BQ16: 0.01 | BR16: 0.01 | BS16: 0.02 | BT16: 0 | BU16: 10 | BV16: -
A17: Vand m3/år | B17: Status | C17: 34714.81481 | D17: 49592.59259 | E17: 500 | F17: 1100 | G17: 350 | H17: 250 | I17: 700 | J17: 10981.21693 | K17: 26921.69312 | L17: 3218.766234 | M17: 3542.328042 | N17: 15586.24339 | O17: =SUM(Tabel16[[#This Row],[-]:[Hannemanns Allé]]) -> 147457.6551 | BE17: Vand m3/år | BF17: Status | BG17: 3408 | BH17: 15000 | BI17: 500 | BJ17: 1000 | BK17: 100 | BL17: 100 | BM17: 100 | BN17: 100 | BO17: 500 | BP17: 100 | BQ17: 100 | BR17: 100 | BS17: 500 | BT17: 0 | BU17: 8734 | BV17: =SUM(BG17:BU17) -> 30342
B18: Plan | C18: 34714.81481 | D18: 49592.59259 | E18: 500 | F18: 1100 | G18: 350 | H18: 250 | I18: 15920.77922 | J18: 10981.21693 | K18: 26921.69312 | L18: 3218.766234 | M18: 3542.328042 | N18: 15586.24339 | O18: =SUM(Tabel16[[#This Row],[-]:[Hannemanns Allé]]) -> 162678.4343 | BF18: Plan | BG18: 3408 | BH18: 15000 | BI18: 500 | BJ18: 1000 | BK18: 100 | BL18: 100 | BM18: 100 | BN18: 100 | BO18: 500 | BP18: 100 | BQ18: 100 | BR18: 100 | BS18: 500 | BT18: 0 | BU18: 8734 | BV18: 30342
B19: Strategi | C19: 36450.55556 | D19: 52072.22222 | E19: 525 | F19: 1155 | G19: 367.5 | H19: 262.5 | I19: 16716.81818 | J19: 11530.27778 | K19: 28267.77778 | L19: 3379.704545 | M19: 3719.444444 | N19: 16365.55556 | O19: =SUM(Tabel16[[#This Row],[-]:[Hannemanns Allé]]) -> 170812.3561 | BF19: Strategi | BG19: 1704 | BH19: 1500 | BI19: 50 | BJ19: 100 | BK19: 10 | BL19: 10 | BM19: 10 | BN19: 10 | BO19: 50 | BP19: 10 | BQ19: 10 | BR19: 10 | BS19: 50 | BT19: 0 | BU19: 780 | BV19: 4304
A20: COD kg/år | B20: Status | C20: 5554.37037 | D20: 7934.814815 | E20: 80 | F20: 176 | G20: 56 | H20: 40 | I20: 112 | J20: 1756.994709 | K20: 4307.470899 | L20: 515.0025974 | M20: 566.7724868 | N20: 2493.798942 | O20: =SUM(Tabel16[[#This Row],[-]:[Hannemanns Allé]]) -> 23593.22482 | BE20: COD kg/år | BF20: Status | BG20: 170 | BH20: 750 | BI20: 25 | BJ20: 50 | BK20: 5 | BL20: 5 | BM20: 5 | BN20: 5 | BO20: 25 | BP20: 5 | BQ20: 5 | BR20: 5 | BS20: 25 | BT20: 0 | BU20: 437 | BV20: 1517
B21: Plan | C21: 5554.37037 | D21: 7934.814815 | E21: 80 | F21: 176 | G21: 56 | H21: 40 | I21: 2547.324675 | J21: 1756.994709 | K21: 4307.470899 | L21: 515.0025974 | M21: 566.7724868 | N21: 2493.798942 | O21: =SUM(Tabel16[[#This Row],[-]:[Hannemanns Allé]]) -> 26028.54949 | BF21: Plan | BG21: 170 | BH21: 750 | BI21: 25 | BJ21: 50 | BK21: 5 | BL21: 5 | BM21: 5 | BN21: 5 | BO21: 25 | BP21: 5 | BQ21: 5 | BR21: 5 | BS21: 25 | BT21: 0 | BU21: 437 | BV21: 1517
B22: Strategi | C22: 5832.088889 | D22: 8331.555556 | E22: 84 | F22: 184.8 | G22: 58.8 | H22: 42 | I22: 2674.690909 | J22: 1844.844444 | K22: 4522.844444 | L22: 540.7527273 | M22: 595.1111111 | N22: 2618.488889 | O22: =SUM(Tabel16[[#This Row],[-]:[Hannemanns Allé]]) -> 27329.97697 | BF22: Strategi | BG22: 85 | BH22: 75 | BI22: 2 | BJ22: 5.9 | BK22: 0.5 | BL22: 0.5 | BM22: 0.5 | BN22: 0.5 | BO22: 2.5 | BP22: 0.5 | BQ22: 0.5 | BR22: 0.5 | BS22: 2.5 | BT22: 0 | BU22: 39 | BV22: 215.4
A23: Total N kg/år | B23: Status | C23: 347.1481481 | D23: 495.9259259 | E23: 5 | F23: 11 | G23: 3.5 | H23: 2.5 | I23: 7 | J23: 109.8121693 | K23: 269.2169312 | L23: 32.18766234 | M23: 35.42328042 | N23: 155.8624339 | O23: =SUM(Tabel16[[#This Row],[-]:[Hannemanns Allé]]) -> 1474.576551 | BE23: Total N kg/år | BF23: Status | BG23: 6.8 | BH23: 30 | BI23: 1 | BJ23: 2 | BK23: 0.2 | BL23: 0.2 | BM23: 0.2 | BN23: 0.2 | BO23: 1 | BP23: 0.2 | BQ23: 0.2 | BR23: 0.2 | BS23: 1 | BT23: 0 | BU23: 17.5 | BV23: 60.7
B24: Plan | C24: 347.1481481 | D24: 495.9259259 | E24: 5 | F24: 11 | G24: 3.5 | H24: 2.5 | I24: 159.2077922 | J24: 109.8121693 | K24: 269.2169312 | L24: 32.18766234 | M24: 35.42328042 | N24: 155.8624339 | O24: =SUM(Tabel16[[#This Row],[-]:[Hannemanns Allé]]) -> 1626.784343 | BF24: Plan | BG24: 6.8 | BH24: 30 | BI24: 1 | BJ24: 2 | BK24: 0.2 | BL24: 0.2 | BM24: 0.2 | BN24: 0.2 | BO24: 1 | BP24: 0.2 | BQ24: 0.2 | BR24: 0.2 | BS24: 1 | BT24: 0 | BU24: 17.5 | BV24: 60.7
B25: Strategi | C25: 364.5055556 | D25: 520.7222222 | E25: 5.25 | F25: 11.55 | G25: 3.675 | H25: 2.625 | I25: 167.1681818 | J25: 115.3027778 | K25: 282.6777778 | L25: 33.79704545 | M25: 37.19444444 | N25: 163.6555556 | O25: =SUM(Tabel16[[#This Row],[-]:[Hannemanns Allé]]) -> 1708.123561 | BF25: Strategi | BG25: 3.4 | BH25: 3 | BI25: 0.08 | BJ25: 0.2 | BK25: 0.02 | BL25: 0.02 | BM25: 0.02 | BN25: 0.02 | BO25: 0.1 | BP25: 0.02 | BQ25: 0.02 | BR25: 0.02 | BS25: 0.1 | BT25: 0 | BU25: 1.6 | BV25: 8.62
A26: Total P kg/år | B26: Status | C26: 86.78703704 | D26: 123.9814815 | E26: 1.25 | F26: 2.75 | G26: 0.875 | H26: 0.625 | I26: 1.75 | J26: 27.45304233 | K26: 67.3042328 | L26: 8.046915584 | M26: 8.855820106 | N26: 38.96560847 | O26: =SUM(Tabel16[[#This Row],[-]:[Hannemanns Allé]]) -> 368.6441378 | BE26: Total P kg/år | BF26: Status | BG26: 1.7 | BH26: 7.5 | BI26: 0.25 | BJ26: 0.5 | BK26: 0.05 | BL26: 0.05 | BM26: 0.05 | BN26: 0.05 | BO26: 0.25 | BP26: 0.05 | BQ26: 0.05 | BR26: 0.05 | BS26: 0.25 | BT26: 0 | BU26: 4.4 | BV26: 15.2
B27: Plan | C27: 86.78703704 | D27: 123.9814815 | E27: 1.25 | F27: 2.75 | G27: 0.875 | H27: 0.625 | I27: 39.80194805 | J27: 27.45304233 | K27: 67.3042328 | L27: 8.046915584 | M27: 8.855820106 | N27: 38.96560847 | O27: =SUM(Tabel16[[#This Row],[-]:[Hannemanns Allé]]) -> 406.6960859 | BF27: Plan | BG27: 1.7 | BH27: 7.5 | BI27: 0.25 | BJ27: 0.5 | BK27: 0.05 | BL27: 0.05 | BM27: 0.05 | BN27: 0.05 | BO27: 0.25 | BP27: 0.05 | BQ27: 0.05 | BR27: 0.05 | BS27: 0.25 | BT27: 0 | BU27: 4.4 | BV27: 15.2
B28: Strategi | C28: 91.12638889 | D28: 130.1805556 | E28: 1.3125 | F28: 2.8875 | G28: 0.91875 | H28: 0.65625 | I28: 41.79204545 | J28: 28.82569444 | K28: 70.66944444 | L28: 8.449261364 | M28: 9.298611111 | N28: 40.91388889 | O28: =SUM(Tabel16[[#This Row],[-]:[Hannemanns Allé]]) -> 427.0308902 | BF28: Strategi | BG28: 0.8 | BH28: 0.75 | BI28: 0.02 | BJ28: 0.06 | BK28: 0.005 | BL28: 0.005 | BM28: 0.005 | BN28: 0.005 | BO28: 0.025 | BP28: 0.005 | BQ28: 0.005 | BR28: 0.005 | BS28: 0.025 | BT28: 0 | BU28: 0.4 | BV28: =SUM(BG28:BU28) -> 2.115
